Cogmind - Beta 13 @@@ ROGUE MODE // 2024.04.05 @ 15:56:56 Player: sauce Result: Destroyed by 8R-AWN with 8R-AWN's Boregun Performance ------------- Evolutions (0) 0 Regions Visited (3) 600 Robots Destroyed (25) 125 Value Destroyed (709) 709 Prototype IDs (2) 40 Alien Tech Used (0) 0 Bonus (258) 258 TOTAL SCORE: 1732 Bonus ------- Aligned with FarCom 300 Friendly Fire -42 Cogmind --------- Core Integrity 0/250 Matter 226/300 Energy 100/100 System Corruption 3% Temperature Cool (0) Movement Core (700) Ox13 Location -10/Exiles Parts ------- > --- POWER (1) -------- (None) > --- PROPULSION (2) --- (None) > --- UTILITY (2) ------ High-capacity Storage Unit > --- WEAPON (2) ------- (None) > --- INVENTORY (20) --- Light Nuclear Core Light Treads Light Treads Improved Heat Sink Weapon Shielding Shield Generator Shield Generator Assault Rifle Light Cannon Heavy Hammer Peak State ------------ > --- POWER ------------ Light Nuclear Core > --- PROPULSION ------- Light Treads Light Treads > --- UTILITY ---------- Small Storage Unit Shield Generator > --- WEAPON ----------- Beam Cannon Assault Rifle > --- INVENTORY -------- Ion Engine Light Treads Improved Heat Sink Core Shielding Shield Generator Assault Rifle Grenade Launcher Heavy Hammer [Rating: 11] Favorites ----------- Power Ion Engine Engine Ion Engine Power Core Light Nuclear Core Propulsion Light Treads Treads Light Treads Utility Core Shielding Device Shield Generator Storage Medium Storage Unit Protection Core Shielding Weapon Assault Rifle Energy Gun Small Laser Energy Cannon Beam Cannon Ballistic Gun Assault Rifle Ballistic Cannon Light Cannon Launcher Rocket Launcher Impact Weapon Heavy Hammer Build | -11 -10 -10 -10 ------- Run | Yrd Mat Min Exi Slots Evolved . | . . . . Power . | . . . . Propulsion . | . . . . Utility . | . . . . Weapon . | . . . . Parts Attached 30 | 6 13 7 4 Power 3 | 1 1 1 . Engine 2 | 1 . 1 . Core 1 | . 1 . . Reactor . | . . . . Propulsion 5 | 2 1 2 . Treads 5 | 2 1 2 . Leg . | . . . . Wheel . | . . . . Hover . | . . . . Flight . | . . . . Utility 5 | 1 3 . 1 Device 1 | . 1 . . Storage 3 | 1 1 . 1 Processor . | . . . . Hackware . | . . . . Protection 1 | . 1 . . Artifact . | . . . . Weapon 17 | 2 8 4 3 Energy Gun 1 | 1 . . . Energy Cannon 2 | . 2 . . Ballistic Gun 5 | 1 3 1 . Ballistic Cannon 2 | . 1 1 . Launcher 2 | . . . 2 Special Weapon . | . . . . Impact Weapon 5 | . 2 2 1 Slashing Weapon . | . . . . Piercing Weapon . | . . . . Special Melee Weapon . | . . . . Unidentified Prototypes . | . . . . Parts Lost 7 | . 1 . 6 Power 1 | . . . 1 Propulsion 3 | . 1 . 2 Utility 1 | . . . 1 Weapon 2 | . . . 2 Highest Loss Streak 6 | . 1 . 6 To Critical Strikes 3 | . . . 3 Average Slot Usage (%) 98 | . 97 100 99 Engine 7 | . 5 4 14 Core 6 | . 8 9 . Treads 27 | . 26 28 27 Device 2 | . 7 . . Storage 14 | . 14 14 14 Protection 11 | . 6 14 13 Energy Cannon 2 | . 7 . . Ballistic Gun 12 | . 15 10 14 Ballistic Cannon 9 | . 1 13 13 Impact Weapon 3 | . 3 4 . Naked Turns . | . . . . Heaviest Build 51 | 13 21 22 51 Greatest Support 40 | 40 40 40 40 Greatest Overweight (x) 16 | . . . 16 Average Overweight (x) . | . . . . Largest Inventory Capacity 20 | 8 10 10 20 Average Capacity 10 | 6 8 10 14 Most Carried 10 | 4 9 10 10 Average Carried 8 | 1 6 8 10 Final Capacity 20 | 8 10 10 20 Final Carried 10 | 1 7 10 10 Class Distribution -------------------- 100% | Mutant Dominant Class ---------------- Mutant | -10/Materials Mutant | -10/Mines Mutant | -10/Exiles Resources | -11 -10 -10 -10 ----------- Run | Yrd Mat Min Exi Matter Collected 882 | 165 408 309 . Remotely . | . . . . Salvage Created 955 | . 504 398 53 Parts 51 | . 31 15 5 Haulers Intercepted . | . . . . Recyclers Shooed 1 | . . 1 . Parts Field Recycled . | . . . . Retrieved Matter . | . . . . Parts Self-Destructed . | . . . . Prevented . | . . . . Kills | -11 -10 -10 -10 ------- Run | Yrd Mat Min Exi Combat Hostiles Destroyed 26 | . 11 9 6 Guns 4 | . 2 1 1 Cannons 17 | . 9 8 . AOE 5 | . . . 5 Classes Destroyed 7 | . 3 2 2 Worker 1 | . 1 . . Recycler 2 | . . 2 . Watcher 1 | . 1 . . Swarmer 3 | . . 3 . Grunt 17 | . 11 6 . Zionite 1 | . . . 1 Assembled 6 | . . . 6 Best Kill Streak 7 | . 3 5 7 Combat Bots Only 6 | . 3 3 6 Max Kills in Single Turn 2 | . 1 1 2 Gunslinging . | . . . . Exploded 2 | . . . 2 Melee . | . . . . Uniques/NPCs Destroyed . | . . . . Combat | -11 -10 -10 -10 -------- Run | Yrd Mat Min Exi Hostile Shots Fired 145 | . 70 44 31 Missed 39 | . 23 9 7 Damage Taken 1333 | . 538 367 428 Core 268 | . 76 108 84 Absorbed by Shields 98 | . 98 . . Redirected to Shielding 32 | . 10 22 . Core Remaining (%) 100 | 100 . . . Volleys Fired 87 | . 48 34 5 Largest 2 | . 2 2 2 Hottest 80 | . 80 55 55 Shots Fired 149 | . 85 53 11 Gun 82 | . 57 18 7 Cannon 64 | . 28 35 1 Launcher 3 | . . . 3 Special . | . . . . Kinetic 121 | . 60 53 8 Thermal 25 | . 25 . . Explosive 3 | . . . 3 Electromagnetic . | . . . . Robot Hit Streak 11 | . 11 5 6 Robot Miss Streak 3 | . 2 3 1 Penetration Max . | . . . . Secondary Targets . | . . . . Shots Hit Robots 91 | . 54 31 6 Core Hits 48 | . 21 13 14 Critical Kills . | . . . . Critical Parts Destroyed . | . . . . Critical Strikes 1 | . . 1 . Blast 1 | . . 1 . Melee Attacks 2 | . . 2 . Impact 2 | . . 2 . Slashing . | . . . . Piercing . | . . . . Sneak Attacks 2 | . . 2 . Combat Hostiles . | . . . . Follow-up Attacks . | . . . . Damage Inflicted 2064 | . 816 694 554 Guns 584 | . 381 143 60 Cannons 779 | . 435 344 . Explosions 494 | . . . 494 Melee 207 | . . 207 . Ramming . | . . . . Kinetic 982 | . 435 487 60 Thermal 381 | . 381 . . Explosive 494 | . . . 494 Electromagnetic . | . . . . Impact 207 | . . 207 . Slashing . | . . . . Piercing . | . . . . Highest Corruption 3 | . 1 1 3 Average Corruption 1 | . 1 1 1 Corruption Purged . | . . . . Corruption Blocked . | . . . . Effects 22 | . 6 10 6 Message Errors 4 | . 1 3 . Matter Fused 8 | . 4 3 1 Heat Flow Errors 3 | . . 1 2 Parts Rejected 1 | . 1 . . Data Loss (minor) 2 | . . 2 . Data Loss (major) 1 | . . . 1 Misfires 3 | . . 1 2 Overload Shots . | . . . . Overflow Damage 188 | . . 164 24 Projectiles 12 | . . 12 . Explosions 24 | . . . 24 Melee 152 | . . 152 . Knockbacks 7 | . 1 6 . Impact 1 | . . 1 . Kinetic 5 | . 1 4 . Secondary 1 | . . 1 . Self-Inflicted Damage 52 | . . . 52 Shots 2 | . . . 2 Rammed . | . . . . Targets Rammed . | . . . . Kicked . | . . . . Crushed . | . . . . Highest Temperature 261 | . 261 142 198 Average Temperature 63 | . 74 25 80 Received Heat Transfer 501 | . 314 147 40 Siege Activations . | . . . . Robots Corrupted . | . . . . Combat Hostiles . | . . . . Parts Fried 1 | . . 1 . Impact Corruptions 5 | . . 5 . Robots Melted . | . . . . Combat Hostiles . | . . . . Parts Melted . | . . . . Heat Transferred 814 | . 814 . . Parts Sabotaged . | . . . . Parts Stolen . | . . . . Parts Stripped . | . . . . Power Chain Reactions . | . . . . Alert | -11 -10 -10 -10 ------- Run | Yrd Mat Min Exi Peak Influence 152 | . 152 104 . Initial 24 | . . 24 . Average 58 | . 61 59 . Maximum Alert Level . | . . . . Low Security (%) 100 | 100 100 100 . Level 1 . | . . . . Level 2 . | . . . . Level 3 . | . . . . Level 4 . | . . . . Level 5 . | . . . . High Security . | . . . . Max Security . | . . . . Squads Dispatched 2 | . 2 . . Investigation 1 | . 1 . . Extermination . | . . . . Reinforcement 1 | . 1 . . Assault . | . . . . Garrison . | . . . . Intercept . | . . . . Searches Triggered . | . . . . Construction Impeded . | . . . . Haulers Reinforced . | . . . . Active Scanning Responses . | . . . . Cargo Convoy Interrupts . | . . . . Stealth | -11 -10 -10 -10 --------- Run | Yrd Mat Min Exi Distress Signals 3 | . 3 . . Communications Jammed . | . . . . Distress Signals . | . . . . Times Spotted 38 | . 20 10 8 Peak Tracking Total 10 | . 4 3 10 Tactical Retreats 2 | . 2 . . Traps | -11 -10 -10 -10 ------- Run | Yrd Mat Min Exi Traps Triggered . | . . . . Indirectly . | . . . . Trap Hack Attempts . | . . . . Triggered . | . . . . Disarmed . | . . . . Reprogrammed . | . . . . Reused . | . . . . Traps Extracted . | . . . . Installed . | . . . . Triggered . | . . . . Machines | -11 -10 -10 -10 ---------- Run | Yrd Mat Min Exi Machines Disabled 3 | . . 1 2 Max in Single Turn 1 | . . 1 1 Machines Repaired . | . . . . Machines Dismantled . | . . . . Machines Sabotaged . | . . . . Overloaded Fab Kills . | . . . . Hacking | -11 -10 -10 -10 --------- Run | Yrd Mat Min Exi Machines Accessed 7 | . 3 . 4 Terminals 2 | . 2 . . Fabricators . | . . . . Repair Stations 1 | . 1 . . Recycling Units . | . . . . Scanalyzers . | . . . . Garrison Access . | . . . . Total Hacks 56 | . 7 . 49 Successful 54 | . 5 . 49 Failed 2 | . 2 . . Catastrophic . | . . . . Database Lockouts . | . . . . Manual 5 | . 2 . 3 Terminals 4 | . 4 . . Fabricators . | . . . . Repair Stations 3 | . 3 . . Recycling Units . | . . . . Scanalyzers . | . . . . Garrison Access . | . . . . Terminal Hacks 53 | . 4 . 49 Record 52 | . 3 . 49 Prototype ID Bank 1 | . 1 . . Fabricator Hacks . | . . . . Repair Station Hacks 1 | . 1 . . Scan Component 1 | . 1 . . Recycling Unit Hacks . | . . . . Scanalyzer . | . . . . Garrison Access Hacks . | . . . . Unauthorized Hacks . | . . . . Terminals . | . . . . Fabricators . | . . . . Repair Stations . | . . . . Recycling Units . | . . . . Scanalyzers . | . . . . Garrison Access . | . . . . Data Cores Recovered . | . . . . Used . | . . . . Hacking Detections 2 | . 2 . . Full Trace Events 2 | . 2 . . Feedback Events 1 | . 1 . . Corruption 1 | . 1 . . Feedback Blocked . | . . . . Robot Schematics Acquired . | . . . . Robots Built . | . . . . Authchips . | . . . . Time . | . . . . Total Robot Build Rating . | . . . . Part Schematics Acquired . | . . . . Parts Built . | . . . . Authchips . | . . . . Time . | . . . . Total Part Build Rating . | . . . . Parts Repaired . | . . . . Time . | . . . . Parts Recycled . | . . . . Recycled Matter . | . . . . Retrieved Matter . | . . . . Retrieved Components . | . . . . Parts Scanalyzed . | . . . . Part Schematics Acquired . | . . . . Parts Damaged . | . . . . Bothacking | -11 -10 -10 -10 ------------ Run | Yrd Mat Min Exi Used RIF Installer . | . . . . Robots Hacked . | . . . . Non-combat . | . . . . Combat . | . . . . Robot Hacks Applied . | . . . . Relay Couplers Released . | . . . . Fabnet Peak Effective % . | . . . . Robots Rewired . | . . . . Allies Hacked . | . . . . Hacks Repelled . | . . . . Allies | -11 -10 -10 -10 -------- Run | Yrd Mat Min Exi Total Allies . | . . . . Largest Group . | . . . . Highest-Rated Group . | . . . . Highest-Rated Ally . | . . . . Total Orders . | . . . . Ally Attacks . | . . . . Total Damage . | . . . . Kills . | . . . . Allies Corrupted . | . . . . Allies Melted . | . . . . Intel | -11 -10 -10 -10 ------- Run | Yrd Mat Min Exi Robot Analysis Total . | . . . . Derelict Logs Recovered 3 | . . 3 . Drone Launches . | . . . . Drone Recoveries . | . . . . Exploration | -11 -10 -10 -10 ------------- Run | Yrd Mat Min Exi Turns Passed 2857 | 70 955 1124 708 Spaces Moved 1461 | 45 476 569 371 Core 14 | 13 . . 1 Treads 1447 | 32 476 569 370 Legs . | . . . . Wheels . | . . . . Hover . | . . . . Flight . | . . . . Fastest Speed 50 | 50 160 160 160 Average Speed 165 | 128 160 160 185 Slowest Speed 850 | 160 160 160 850 Overloaded Moves . | . . . . Propulsion Burnouts . | . . . . Robots Hopped . | . . . . Cave-ins Triggered . | . . . . Exploration Rate (%) 65 | 4 90 96 71 Regions Visited 3 Branch Regions 2 Pre-discovered Areas 3 | . . 2 1 Known Exits Taken 1 | . . 1 . Unknown Exits Taken 2 | 1 1 . . Scrap Searched 3 | . . 3 . Spaces Dug . | . . . . Terrain Destroyed 15 | . . . 15 Melee . | . . . . Projectile . | . . . . AOE 15 | . . . 15 Terrain Rammed . | . . . . Walls Destroyed . | . . . . Machines Disabled . | . . . . Actions | -11 -10 -10 -10 --------- Run | Yrd Mat Min Exi Total 1747 | 57 584 725 381 Wait 137 | . 30 107 . Move 1458 | 44 475 568 371 Hop . | . . . . Pick Up 24 | 7 12 5 . Fast Attach 1 | . 1 . . Attach 10 | 6 4 . . Detach . | . . . . Swap 19 | . 8 7 4 Drop 9 | . 6 2 1 Fire 87 | . 48 34 5 Melee 2 | . . 2 . Ram . | . . . . Kick . | . . . . Crush . | . . . . Escape Stasis . | . . . . Rewire . | . . . . Trap . | . . . . Miscellaneous . | . . . . Route ------- -11/Scrapyard -10/Materials (discovered 5 exits: [*Mat x3] / [*Min x2]) -10/Mines (discovered 3 exits: [*Mat x2] / *Exi) -10/Exiles (discovered 1 exit: [*Min]) History --------- Turn | Location | Event 15 | -11/Scrapyard | Discovered new exit (range 16) 71 | -11/Scrapyard | Entered Materials 282 | -10/Materials | Discovered new exit (range 8) 323 | -10/Materials | Build established: Mutant 408 | -10/Materials | Discovered new exit (range 14) 507 | -10/Materials | Discovered new exit (range 13) 800 | -10/Materials | Discovered new exit (range 5) 855 | -10/Materials | Discovered new exit (range 9) 1026 | -10/Materials | Entered Mines 1027 | -10/Mines | Learned location of Storage (-9) 1081 | -10/Mines | Excavation squad dispatched 1081 | -10/Mines | A large section of the Mines collapsed 1229 | -10/Mines | Core integrity fell below 50% 1236 | -10/Mines | Discovered new exit (range 8) 1369 | -10/Mines | YI-UF0 nonchalantly dropped a Grenade Launcher on the ground 1601 | -10/Mines | Identified exit to Exiles 1757 | -10/Mines | Discovered new exit (range 9) 2050 | -10/Mines | Received a Rocket Launcher from a helpful Derelict 2099 | -10/Mines | Learned Materials terminal intel 2144 | -10/Mines | Deemed a non-threat by the Exiles lab entrance 2150 | -10/Mines | Entered Exiles 2192 | -10/Exiles | Met 8R-AWN 2218 | -10/Exiles | Met EX-HEX 2280 | -10/Exiles | Met EX-BIN 2320 | -10/Exiles | Aligned with FarCom system 2322 | -10/Exiles | Given EX-Vault access code 2480 | -10/Exiles | Met EX-DEC 2491 | -10/Exiles | Learned location of Zion (-7) 2625 | -10/Exiles | Discovered new exit (range 12) 2818 | -10/Exiles | Attacked by the Exiles 2850 | -10/Exiles | Core integrity fell below 20% 2858 | -10/Exiles | Destroyed by 8R-AWN with 8R-AWN's Boregun Last Messages --------------- HV Slug penetrates Earth. The unstable cave ceiling collapses. Penetrated by HV Slug. HV Slug penetrates Wall. HV Slug penetrates Earth. Penetrated by HV Slug. Critical hit (Destroy). Lgt. Treads destroyed. Penetrated by HV Slug. Critical hit (Destroy). Assault Rifle destroyed. Penetrated by HV Slug. System corrupted: Substantial component data lost. Penetrated by HV Slug. Rocket Launcher destroyed. Penetrated by HV Slug. Critical hit (Destroy). Ion Engine destroyed. Penetrated by HV Slug. Map ----- +----------------------------------------------------+ | ????#"" "#????????#" """ # "??????????? | | ????# ""#????????#" """""""""#????????????? | | ????#"" ""#???????##" ###########????????????? | | ????### ###??????##"" #??????????????????????? | | #???### ###?######"" #??????????????????????? | | #####X# #"###""""""" ##?????????????????????? | | """""" " "" ##???###########??????? | | "" """ " #####"""""""""##?????? | | " " " """ """"##????? | | "" " #????? | | " """#????? | | " "#????? | | " "##???? | | ""###?? | | "" """""" """#?? | | ######""" "#?? | | ""##????#####""" ##? | | " """##?????????##""" ## | | """##???????????#"""" # | | ""#?????????####"" g | | ############ #"""" | | ##aaa " | | | | | | "" % # | | ! * @ " ## | | "a== """ ""#? | | """ " " " ""#" "##? | | " ""##; %# ####""" """##"""""""##?? | | """"### ##????#"""???#########??? | | "" """#?### #?????##????????????????? | | ""##???! "!??????????????????????? | | "" """##???#" !#?????????????????????? | | #""" ##????#" "#?????????????????????? | | ##"""" ##?????#!!""!"#?????????????????????? | | ?### #??????########?????????????????????? | | ???##### ##???????????????????????????????????? | | ???????## #????????????????????????????????????? | | ????????# #????????????????????????????????????? | | ????????# #????????????????????????????????????? | | ????????# #????????????????????????????????????? | | ????????? ?????????????????????????????????????? | | ?????????????????????????????????????????????????? | | ?????????????????????????????????????????????????? | | ?????????????????????????????????????????????????? | | ?????????????????????????????????????????????????? | | ?????????????????????????????????????????????????? | | ?????????????????????????????????????????????????? | | ?????????????????????????????????????????????????? | | ?????????????????????????????????????????????????? | +----------------------------------------------------+ Best States ------------- Heat Dissipation 25 Energy Generation 14 Energy Capacity 250 Matter Stores 300 Matter Capacity 300 Sight Range 16 Terrain Scan Density 10 Core Shielding 20 Evasion (%) 50 Recoil Reduction 2 Item Schematics ----------------- None Robot Schematics ------------------ None Fabricated ------------ Nothing Alien Tech Used ----------------- None Achievements -------------- None Challenges ------------ None Game ------ Seed PortablePointBay Manual? 0 Play Time 00:20:36 Cumulative 2.8 hours Start 2024.04.05 @ 15:37:30 End 2024.04.05 @ 15:56:56 Sessions 1 Manual Loads 0 Difficulty Rogue Special Mode None Game No. 7 Rogue 7 Adventurer 0 Explorer 0 Win Type - Total 0 Types 0/0/0/0/0/0/0/0/0 Lore% 12 Gallery% 8 Achievement% 7 Wizard Run 0 Options --------- Layout 1 ASCII 0 Keyboard 0 Movement Mouse Keybinds 0 Fullscreen 1 Font 24/Smallcaps Map View 50x35 Zoom Use 0% Tactical HUD 0 Map Filters NONE Filters NONE Steam 1 RUN: 78850f80-de0f-4c11-93eb-dbfc2d5e69b4